fUST/lending_fUST_20250910
["ID","MTS","AMOUNT","RATE_DAILY","PERIOD"]
[384486193,1757438970489,666.0,0.0001267,2]
[384486194,1757438975316,170.01,0.00012329,2]
[384486195,1757438985755,850.09,0.00012329,2]
[384486307,1757439038625,-545.89180486,0.00013325,2]
[384486308,1757439038734,-5098.29122748,0.00013325,2]
[384486309,1757439038744,-11496.60487123,0.0001346,2]
[384486310,1757439038754,-329.68561519,0.00013595,2]
[384486311,1757439038763,-500.0,0.00013595,2]
[384486312,1757439038774,-500.0,0.00013595,2]
[384486313,1757439038783,-234.41114981,0.00013595,2]
[384486314,1757439038792,-1009.94735985,0.00013595,2]
[384486315,1757439038802,-500.0,0.00013595,2]
[384486316,1757439038812,-1009.94735985,0.00013595,2]
[384486318,1757439038821,-623.99711567,0.00013595,2]
[384486319,1757439038831,-472.03230384,0.00013595,2]
[384486320,1757439038841,-1009.94735985,0.00013595,2]
[384486321,1757439038850,-520.0,0.00013595,2]
[384486322,1757439038860,-1009.94735985,0.00013595,2]
[384486323,1757439038869,-1009.94735985,0.00013595,2]
[384486324,1757439038879,-1009.94735985,0.00013595,2]
[384486325,1757439038888,-1009.94735985,0.00013595,2]
[384486326,1757439038899,-1009.94735985,0.00013595,2]
[384486327,1757439039067,-1009.94735985,0.00013595,2]
[384486328,1757439039077,-1009.94735985,0.00013595,2]
[384486329,1757439039087,-1009.94735985,0.00013595,2]
[384486330,1757439039097,-1009.94735985,0.00013595,2]
[384486331,1757439039107,-1009.94735985,0.00013595,2]
[384486332,1757439039119,-1009.94735985,0.00013595,2]
[384486333,1757439039129,-1009.94735985,0.00013595,2]
[384486334,1757439039138,-1009.94735985,0.00013595,2]
[384486335,1757439039148,-1009.94735985,0.00013595,2]
[384486336,1757439039159,-1009.94735985,0.00013595,2]
[384486337,1757439039168,-1009.94735985,0.00013595,2]
[384486338,1757439039177,-1009.94735985,0.00013595,2]
[384486339,1757439039187,-1009.94735985,0.00013595,2]
[384486340,1757439039197,-1009.94735985,0.00013595,2]
[384486341,1757439039207,-1009.94735985,0.00013595,2]
[384486342,1757439039216,-1009.94735985,0.00013595,2]
[384486343,1757439039227,-1009.94735985,0.00013595,2]
[384486344,1757439039236,-1009.94735985,0.00013595,2]
[384486345,1757439039246,-1009.94735985,0.00013595,2]
[384486346,1757439039255,-1009.94735985,0.00013595,2]
[384486347,1757439039265,-1009.94735985,0.00013595,2]
[384486348,1757439039274,-1009.94735985,0.00013595,2]
[384486349,1757439039284,-1009.94735985,0.00013595,2]
[384486350,1757439039293,-1009.94735985,0.00013595,2]
[384486351,1757439039302,-1009.94735985,0.00013595,2]
[384486352,1757439039311,-1009.94735985,0.00013595,2]
[384486353,1757439039321,-1009.94735985,0.00013595,2]
[384486355,1757439039330,-1009.94735985,0.00013595,2]
[384486357,1757439039339,-1009.94735985,0.00013595,2]
[384486359,1757439039348,-1009.94735985,0.00013595,2]
[384486360,1757439039358,-1009.94735985,0.00013595,2]
[384486362,1757439039367,-1009.94735985,0.00013595,2]
[384486364,1757439039376,-1009.94735985,0.00013595,2]
[384486366,1757439039386,-1009.94735985,0.00013595,2]
[384486367,1757439039394,-1009.94735985,0.00013595,2]
[384486368,1757439039406,-1009.94735985,0.00013595,2]
[384486369,1757439039414,-1009.94735985,0.00013595,2]
[384486370,1757439039423,-1009.94735985,0.00013595,2]
[384486371,1757439039433,-1009.94735985,0.00013595,2]
[384486372,1757439039442,-1009.94735985,0.00013595,2]
[384486373,1757439039451,-1009.94735985,0.00013595,2]
[384486374,1757439039459,-1009.94735985,0.00013595,2]
[384486375,1757439039469,-1009.94735985,0.00013595,2]
[384486376,1757439039478,-1009.94735985,0.00013595,2]
[384486377,1757439039487,-1009.94735985,0.00013595,2]
[384486378,1757439039496,-1009.94735985,0.00013595,2]
[384486379,1757439039505,-1009.94735985,0.00013595,2]
[384486380,1757439039514,-1009.94735985,0.00013595,2]
[384486381,1757439039523,-1009.94735985,0.00013595,2]
[384486382,1757439039532,-1009.94735985,0.00013595,2]
[384486383,1757439039541,-1009.94735985,0.00013595,2]
[384486384,1757439039550,-1009.94735985,0.00013595,2]
[384486385,1757439039559,-1009.94735985,0.00013595,2]
[384486386,1757439039569,-1009.94735985,0.00013595,2]
[384486387,1757439039578,-1009.94735985,0.00013595,2]
[384486388,1757439039587,-1009.94735985,0.00013595,2]
[384486389,1757439039597,-1009.94735985,0.00013595,2]
[384486390,1757439039607,-1009.94735985,0.00013595,2]
[384486391,1757439039616,-1009.94735985,0.00013595,2]
[384486392,1757439039625,-82663.97314972,0.00013596,2]
[384486393,1757439039634,-2415.50589376,0.00013598,2]
[384486394,1757439039644,-18603.8837,0.0001369,2]
[384486395,1757439039654,-3000.0,0.00013696,2]
[384486396,1757439039663,-500.0,0.00013697,2]
[384486397,1757439039673,-480.0,0.00013698,2]
[384486398,1757439039682,-480.0,0.00013698,2]
[384486399,1757439039691,-480.0,0.00013698,2]
[384486400,1757439039701,-480.0,0.00013698,2]
[384486401,1757439039711,-469.98,0.00013698,2]
[384486402,1757439039720,-480.0,0.00013698,2]
[384486403,1757439039729,-480.0,0.00013698,2]
[384486404,1757439039739,-534.72,0.00013698,2]
[384486405,1757439039748,-480.0,0.00013698,2]
[384486406,1757439039757,-480.0,0.00013698,2]
[384486407,1757439039766,-480.0,0.00013698,2]
[384486408,1757439039776,-480.0,0.00013698,2]
[384486409,1757439039785,-480.0,0.00013698,2]
[384486410,1757439039794,-480.0,0.00013698,2]
[384486411,1757439039803,-480.0,0.00013698,2]
[384486412,1757439039813,-480.0,0.00013698,2]
[384486413,1757439039822,-480.0,0.00013698,2]
[384486414,1757439039831,-480.0,0.00013698,2]
[384486415,1757439039840,-407.9283612,0.00013698,2]
[384486416,1757439039851,-480.0,0.00013698,2]
[384486417,1757439039861,-480.0,0.00013698,2]
[384486418,1757439039871,-685.2,0.00013698,2]
[384486419,1757439039880,-540.23919134,0.00013698,2]
[384486420,1757439039890,-480.0,0.00013698,2]
[384486421,1757439039899,-480.0,0.00013698,2]
[384486422,1757439039909,-480.0,0.00013698,2]
[384486423,1757439039918,-480.0,0.00013698,2]
[384486424,1757439039928,-480.0,0.00013698,2]
[384486425,1757439039937,-480.0,0.00013698,2]
[384486426,1757439039946,-487.35,0.00013698,2]
[384486427,1757439039955,-480.0,0.00013698,2]
[384486428,1757439039965,-480.0,0.00013698,2]
[384486429,1757439039974,-480.0,0.00013698,2]
[384486430,1757439039983,-480.0,0.00013698,2]
[384486431,1757439039992,-480.0,0.00013698,2]
[384486432,1757439040001,-480.0,0.00013698,2]
[384486433,1757439040011,-480.48107324,0.00013698,2]
[384486434,1757439040020,-912.85,0.00013698,2]
[384486435,1757439040030,-540.1,0.00013698,2]
[384486436,1757439040039,-480.0,0.00013698,2]
[384486437,1757439040048,-480.0,0.00013698,2]
[384486438,1757439040058,-548.08,0.00013698,2]
[384486440,1757439040067,-480.0,0.00013698,2]
[384486441,1757439040077,-480.0,0.00013698,2]
[384486442,1757439040086,-480.0,0.00013698,2]
[384486443,1757439040095,-480.0,0.00013698,2]
[384486444,1757439040105,-938.38,0.00013698,2]
[384486445,1757439040117,-480.0,0.00013698,2]
[384486446,1757439040126,-379.42,0.00013698,2]
[384486447,1757439040135,-480.0,0.00013698,2]
[384486448,1757439040145,-480.0,0.00013698,2]
[384486449,1757439040155,-1381.06,0.00013698,2]
[384486450,1757439040164,-522.13,0.00013698,2]
[384486452,1757439040172,-336.73026645,0.00013698,2]
[384486453,1757439040182,-769.37,0.00013698,2]
[384486454,1757439040194,-746.49,0.00013698,2]
[384486455,1757439040206,-480.0,0.00013698,2]
[384486456,1757439040216,-778.61,0.00013698,2]
[384486457,1757439040227,-480.0,0.00013698,2]
[384486458,1757439040237,-480.0,0.00013698,2]
[384486459,1757439040247,-480.0,0.00013698,2]
[384486460,1757439040256,-480.0,0.00013698,2]
[384486461,1757439040265,-555.98,0.00013698,2]
[384486462,1757439040274,-480.0,0.00013698,2]
[384486464,1757439040285,-151.0,0.00013698,2]
[384486466,1757439040294,-151.0,0.00013698,2]
[384486467,1757439040304,-151.0,0.00013698,2]
[384486469,1757439040313,-480.0,0.00013698,2]
[384486470,1757439040324,-151.0,0.00013698,2]
[384486471,1757439040333,-151.0,0.00013698,2]
[384486472,1757439040342,-480.0,0.00013698,2]
[384486473,1757439040351,-480.0,0.00013698,2]
[384486474,1757439040360,-215.50172759,0.00013698,2]
[384486475,1757439040369,-480.0,0.00013698,2]
[384486476,1757439040378,-480.0,0.00013698,2]
[384486477,1757439040388,-480.0,0.00013698,2]
[384486478,1757439040397,-480.0,0.00013698,2]
[384486479,1757439040407,-1742.64,0.00013698,2]
[384486480,1757439040416,-480.0,0.00013698,2]
[384486481,1757439040425,-151.0,0.00013698,2]
[384486482,1757439040434,-480.0,0.00013698,2]
[384486483,1757439040443,-480.0,0.00013698,2]
[384486484,1757439040453,-480.0,0.00013698,2]
[384486485,1757439040461,-480.0,0.00013698,2]
[384486486,1757439040470,-480.0,0.00013698,2]
[384486487,1757439040479,-368.00744578,0.00013698,2]
[384486488,1757439040488,-286.99555922,0.00013698,2]
[384486489,1757439040498,-480.0,0.00013698,2]
[384486491,1757439040507,-480.0,0.00013698,2]
[384486493,1757439040516,-151.0,0.00013698,2]
[384486495,1757439040525,-480.0,0.00013698,2]
[384486497,1757439040534,-654.64,0.00013698,2]
[384486498,1757439040543,-480.0,0.00013698,2]
[384486500,1757439040552,-480.0,0.00013698,2]
[384486502,1757439040562,-644.48,0.00013698,2]
[384486504,1757439040571,-601.96,0.00013698,2]
[384486505,1757439040580,-506.18,0.00013698,2]
[384486507,1757439040589,-480.0,0.00013698,2]
[384486509,1757439040598,-480.0,0.00013698,2]
[384486510,1757439040608,-480.0,0.00013698,2]
[384486512,1757439040617,-480.0,0.00013698,2]
[384486514,1757439040626,-480.0,0.00013698,2]
[384486516,1757439040635,-152.673523,0.00013698,2]
[384486518,1757439040645,-480.0,0.00013698,2]
[384486520,1757439040654,-480.0,0.00013698,2]
[384486522,1757439040663,-480.0,0.00013698,2]
[384486524,1757439040673,-480.0,0.00013698,2]
[384486526,1757439040682,-480.0,0.00013698,2]
[384486527,1757439040691,-480.0,0.00013698,2]
[384486529,1757439040700,-830.18,0.00013698,2]
[384486531,1757439040710,-480.0,0.00013698,2]
[384486533,1757439040720,-480.0,0.00013698,2]
[384486535,1757439040730,-4546.11,0.00013698,2]
[384486537,1757439040740,-151.0,0.00013698,2]
[384486539,1757439040751,-480.0,0.00013698,2]
[384486541,1757439040760,-815.99,0.00013698,2]
[384486543,1757439040770,-480.0,0.00013698,2]
[384486545,1757439040780,-480.0,0.00013698,2]
[384486547,1757439040789,-480.0,0.00013698,2]
[384486549,1757439040800,-151.0,0.00013698,2]
[384486551,1757439040810,-1775.66,0.00013698,2]
[384486553,1757439040821,-151.0,0.00013698,2]
[384486555,1757439040830,-480.0,0.00013698,2]
[384486557,1757439040841,-151.0,0.00013698,2]
[384486559,1757439040850,-151.0,0.00013698,2]
[384486561,1757439040860,-480.0,0.00013698,2]
[384486563,1757439040870,-480.0,0.00013698,2]
[384486565,1757439040880,-3481.5,0.00013698,2]
[384486567,1757439040890,-480.0,0.00013698,2]
[384486569,1757439040899,-151.0,0.00013698,2]
[384486570,1757439040909,-480.0,0.00013698,2]
[384486572,1757439040918,-480.0,0.00013698,2]
[384486574,1757439040928,-600.53,0.00013698,2]
[384486576,1757439040937,-480.0,0.00013698,2]
[384486578,1757439040947,-480.0,0.00013698,2]
[384486580,1757439040957,-500.0,0.00013698,2]
[384486582,1757439040966,-500.0,0.00013698,2]
[384486584,1757439040975,-500.0,0.00013698,2]
[384486586,1757439040987,-500.0,0.00013698,2]
[384486588,1757439040996,-786.52,0.00013698,2]
[384486590,1757439041005,-500.0,0.00013698,2]
[384486592,1757439041014,-423.22,0.00013698,2]
[384486594,1757439041024,-2536.03,0.00013698,2]
[384486596,1757439041033,-723.46,0.00013698,2]
[384486598,1757439041042,-480.0,0.00013698,2]
[384486600,1757439041053,-480.0,0.00013698,2]
[384486602,1757439041062,-151.0,0.00013698,2]
[384486604,1757439041071,-2259.64,0.00013698,2]
[384486605,1757439041080,-480.0,0.00013698,2]
[384486607,1757439041090,-151.0,0.00013698,2]
[384486609,1757439041099,-480.0,0.00013698,2]
[384486611,1757439041108,-480.0,0.00013698,2]
[384486613,1757439041121,-1719.61,0.00013698,2]
[384486615,1757439041131,-480.0,0.00013698,2]
[384486617,1757439041140,-427.97970449,0.00013698,2]
[384486619,1757439041150,-669.3,0.00013698,2]
[384486621,1757439041160,-543.4,0.00013698,2]
[384486623,1757439041169,-480.0,0.00013698,2]
[384486625,1757439041178,-151.0,0.00013698,2]
[384486627,1757439041187,-151.0,0.00013698,2]
[384486629,1757439041196,-480.0,0.00013698,2]
[384486631,1757439041206,-480.0,0.00013698,2]
[384486633,1757439041215,-151.0,0.00013698,2]
[384486635,1757439041224,-480.0,0.00013698,2]
[384486636,1757439041234,-480.0,0.00013698,2]
[384486638,1757439041243,-480.0,0.00013698,2]
[384486640,1757439041252,-480.0,0.00013698,2]
[384486642,1757439041261,-26243.33,0.00013698,2]
[384486644,1757439041270,-480.0,0.00013698,2]
[384486646,1757439041281,-480.0,0.00013698,2]
[384486648,1757439041290,-480.0,0.00013698,2]
[384486650,1757439041299,-480.0,0.00013698,2]
[384486652,1757439041308,-2969.12,0.00013698,2]
[384486654,1757439041317,-486.94,0.00013698,2]
[384486656,1757439041326,-940.96,0.00013698,2]
[384486658,1757439041336,-644.54,0.00013698,2]
[384486660,1757439041345,-923.18,0.00013698,2]
[384486662,1757439041355,-151.0,0.00013698,2]
[384486664,1757439041364,-494.4,0.00013698,2]
[384486666,1757439041374,-151.0,0.00013698,2]
[384486668,1757439041383,-480.0,0.00013698,2]
[384486670,1757439041392,-480.0,0.00013698,2]
[384486672,1757439041401,-643.65,0.00013698,2]
[384486674,1757439041410,-151.0,0.00013698,2]
[384486676,1757439041419,-1561.26,0.00013698,2]
[384486678,1757439041429,-151.0,0.00013698,2]
[384486680,1757439041438,-480.0,0.00013698,2]
[384486682,1757439041447,-480.0,0.00013698,2]
[384486684,1757439041456,-480.0,0.00013698,2]
[384486685,1757439041465,-480.0,0.00013698,2]
[384486687,1757439041474,-480.0,0.00013698,2]
[384486689,1757439041483,-480.0,0.00013698,2]
[384486691,1757439041493,-480.0,0.00013698,2]
[384486693,1757439041502,-1719.16,0.00013698,2]
[384486695,1757439041511,-845.72,0.00013698,2]
[384486697,1757439041520,-857.95,0.00013698,2]
[384486699,1757439041529,-1895.63,0.00013698,2]
[384486701,1757439041538,-489.65,0.00013698,2]
[384486703,1757439041547,-585.75,0.00013698,2]
[384486705,1757439041557,-480.0,0.00013698,2]
[384486707,1757439041566,-480.0,0.00013698,2]
[384486709,1757439041575,-842.07,0.00013698,2]
[384486711,1757439041584,-499.38,0.00013698,2]
[384486713,1757439041593,-506.55,0.00013698,2]
[384486715,1757439041603,-480.0,0.00013698,2]
[384486717,1757439041612,-1112.78,0.00013698,2]
[384486719,1757439041621,-480.0,0.00013698,2]
[384486721,1757439041631,-480.0,0.00013698,2]
[384486723,1757439041640,-480.0,0.00013698,2]
[384486724,1757439041649,-480.0,0.00013698,2]
[384486726,1757439041659,-948.37,0.00013698,2]
[384486728,1757439041668,-480.0,0.00013698,2]
[384486730,1757439041677,-480.0,0.00013698,2]
[384486732,1757439041687,-480.0,0.00013698,2]
[384486734,1757439041696,-480.0,0.00013698,2]
[384486736,1757439041705,-480.0,0.00013698,2]
[384486738,1757439041715,-487.47036349,0.00013698,2]
[384486740,1757439041724,-1887.27,0.00013698,2]
[384486742,1757439041734,-736.76,0.00013698,2]
[384486744,1757439041743,-572.22,0.00013698,2]
[384486746,1757439041752,-480.0,0.00013698,2]
[384486748,1757439041762,-480.0,0.00013698,2]
[384486750,1757439041771,-480.0,0.00013698,2]
[384486752,1757439041782,-480.0,0.00013698,2]
[384486754,1757439041791,-480.0,0.00013698,2]
[384486756,1757439041801,-480.0,0.00013698,2]
[384486758,1757439041810,-480.0,0.00013698,2]
[384486760,1757439041819,-480.0,0.00013698,2]
[384486762,1757439041828,-480.0,0.00013698,2]
[384486764,1757439041837,-480.0,0.00013698,2]
[384486765,1757439041846,-480.0,0.00013698,2]
[384486767,1757439041856,-906.25,0.00013698,2]
[384486769,1757439041865,-2282.39,0.00013698,2]
[384486771,1757439041875,-480.0,0.00013698,2]
[384486773,1757439041884,-480.0,0.00013698,2]
[384486775,1757439041896,-1481.35,0.00013698,2]
[384486776,1757439041906,-1137.41,0.00013698,2]
[384486777,1757439041916,-480.0,0.00013698,2]
[384486779,1757439041925,-614.27,0.00013698,2]
[384486781,1757439041934,-620.61,0.00013698,2]
[384486782,1757439041944,-5091.75,0.00013698,2]
[384486784,1757439041953,-5512.86,0.00013698,2]
[384486786,1757439041963,-480.0,0.00013698,2]
[384486787,1757439041972,-480.0,0.00013698,2]
[384486789,1757439041982,-480.0,0.00013698,2]
[384486790,1757439041991,-480.0,0.00013698,2]
[384486792,1757439042001,-3979.18,0.00013698,2]
[384486794,1757439042010,-480.0,0.00013698,2]
[384486795,1757439042019,-519.67,0.00013698,2]
[384486797,1757439042029,-480.0,0.00013698,2]
[384486799,1757439042039,-682.99,0.00013698,2]
[384486800,1757439042048,-941.33,0.00013698,2]
[384486802,1757439042058,-151.0,0.00013698,2]
[384486804,1757439042067,-151.0,0.00013698,2]
[384486805,1757439042077,-1124.26,0.00013698,2]
[384486807,1757439042086,-151.0,0.00013698,2]
[384486809,1757439042096,-1289.09,0.00013698,2]
[384486810,1757439042106,-934.26,0.00013698,2]
[384486812,1757439042119,-283.419958,0.00013699,2]
[384486814,1757439042128,-1054.71009,0.00013699,2]
[384486815,1757439042138,-151.0,0.00013699,2]
[384486817,1757439042147,-151.0,0.00013699,2]
[384486819,1757439042158,-244.533514,0.00013699,2]
[384486820,1757439042168,-168.0,0.00013705,2]
[384486831,1757439042306,-151.0,0.00013705,2]
[384486833,1757439042316,-151.0,0.00013705,2]
[384486835,1757439042325,-151.0,0.00013705,2]
[384486836,1757439042332,-154.027374,0.00013705,2]
[384486838,1757439042341,-846.80158213,0.00013774,2]
[384486840,1757439042350,-233.05759179,0.00013774,2]
[384486842,1757439042360,-160.0,0.00013774,2]
[384486843,1757439042371,-530.79566296,0.00013774,2]
[384486845,1757439042382,-160.0,0.00013774,2]
[384486847,1757439042392,-160.0,0.00013774,2]
[384486848,1757439042401,-417.15472785,0.00013774,2]
[384486850,1757439042411,-217.65034598,0.00013774,2]
[384486852,1757439042420,-203.28455737,0.00013774,2]
[384486853,1757439042429,-202.0,0.00013871,2]
[384486855,1757439042438,-202.0,0.00013874,2]
[384486857,1757439042448,-3000.0,0.00013896,2]
[384486859,1757439042458,-202.0,0.00013899,2]
[384486860,1757439042467,-100531.44228188,0.000139,2]
[384486862,1757439042477,-151.0,0.000139,2]
[384486864,1757439042486,-151.0,0.000139,2]
[384486865,1757439042495,-169.58336765,0.00013951,2]
[384486867,1757439042504,-976.0,0.00013957,2]
[384486869,1757439042515,-634.0,0.00013957,2]
[384486871,1757439042525,-2154.0,0.00013957,2]
[384486873,1757439042534,-326.6,0.00013957,2]
[384486874,1757439042544,-429.6,0.00013957,2]
[384486876,1757439042554,-300.0,0.00013968,2]
[384486878,1757439042562,-300.0,0.00013968,2]
[384486880,1757439042571,-300.0,0.00013968,2]
[384486881,1757439042580,-300.0,0.00013968,2]
[384486883,1757439042590,-300.0,0.00013968,2]
[384486885,1757439042599,-300.0,0.00013968,2]
[384486886,1757439042608,-300.0,0.00013968,2]
[384486888,1757439042618,-300.0,0.00013968,2]
[384486890,1757439042627,-300.0,0.00013968,2]
[384486892,1757439042636,-300.0,0.00013968,2]
[384486893,1757439042646,-300.0,0.00013968,2]
[384486895,1757439042655,-300.0,0.00013968,2]
[384486897,1757439042664,-300.0,0.00013968,2]
[384486898,1757439042674,-300.0,0.00013968,2]
[384486900,1757439042683,-300.0,0.00013968,2]
[384486902,1757439042694,-600.0,0.00013968,2]
[384486904,1757439042703,-303.76515095,0.00013971,2]
[384486906,1757439042712,-151.0,0.00013972,2]
[384486907,1757439042721,-480.0,0.00013972,2]
[384486909,1757439042731,-151.0,0.00013972,2]
[384486911,1757439042740,-151.0,0.00013972,2]
[384486912,1757439042749,-480.0,0.00013972,2]
[384486914,1757439042758,-480.0,0.00013972,2]
[384486916,1757439042768,-155.328538,0.00013972,2]
[384486918,1757439042777,-391.44244014,0.00013972,2]
[384486919,1757439042786,-151.0,0.00013972,2]
[384486921,1757439042796,-480.0,0.00013972,2]
[384486923,1757439042805,-1000.0,0.00013972,2]
[384486925,1757439042815,-1000.0,0.00013972,2]
[384486926,1757439042824,-1000.0,0.00013972,2]
[384486928,1757439042834,-840.0,0.00013972,2]
[384486930,1757439042843,-480.0,0.00013972,2]
[384486932,1757439042853,-480.0,0.00013972,2]
[384486933,1757439042863,-480.0,0.00013972,2]
[384486935,1757439042872,-480.0,0.00013972,2]
[384486937,1757439042882,-480.0,0.00013972,2]
[384486939,1757439042891,-685.2,0.00013972,2]
[384486940,1757439042900,-480.0,0.00013972,2]
[384486942,1757439042910,-480.0,0.00013972,2]
[384486944,1757439042919,-480.0,0.00013972,2]
[384486946,1757439042928,-151.0,0.00013972,2]
[384486947,1757439042937,-151.0,0.00013972,2]
[384486949,1757439042946,-480.0,0.00013972,2]
[384486951,1757439042955,-487.35,0.00013972,2]
[384486953,1757439042964,-480.0,0.00013972,2]
[384486954,1757439042973,-480.0,0.00013972,2]
[384486956,1757439042982,-912.85,0.00013972,2]
[384486958,1757439042992,-540.1,0.00013972,2]
[384486960,1757439043001,-159.064248,0.00013972,2]
[384486961,1757439043011,-548.08,0.00013972,2]
[384486963,1757439043021,-480.0,0.00013972,2]
[384486965,1757439043031,-151.0,0.00013972,2]
[384486967,1757439043040,-151.0,0.00013972,2]
[384486968,1757439043050,-938.38,0.00013972,2]
[384486970,1757439043059,-480.0,0.00013972,2]
[384486972,1757439043068,-1381.06,0.00013972,2]
[384486974,1757439043078,-151.0,0.00013972,2]
[384486975,1757439043087,-522.13,0.00013972,2]
[384486977,1757439043097,-151.0,0.00013972,2]
[384486980,1757439043106,-151.0,0.00013972,2]
[384486982,1757439043119,-769.37,0.00013972,2]
[384486984,1757439043129,-746.49,0.00013972,2]
[384486986,1757439043139,-778.61,0.00013972,2]
[384486988,1757439043148,-480.0,0.00013972,2]
[384486991,1757439043159,-555.98,0.00013972,2]
[384486994,1757439043167,-151.0,0.00013972,2]
[384486996,1757439043177,-151.0,0.00013972,2]
[384486998,1757439043187,-151.0,0.00013972,2]
[384487000,1757439043198,-480.0,0.00013972,2]
[384487002,1757439043207,-151.0,0.00013972,2]
[384487003,1757439043216,-151.0,0.00013972,2]
[384487005,1757439043226,-480.0,0.00013972,2]
[384487007,1757439043235,-480.0,0.00013972,2]
[384487009,1757439043244,-480.0,0.00013972,2]
[384487010,1757439043254,-1742.64,0.00013972,2]
[384487012,1757439043264,-480.0,0.00013972,2]
[384487015,1757439043273,-151.0,0.00013972,2]
[384487018,1757439043281,-480.0,0.00013972,2]
[384487019,1757439043291,-410.9844104,0.00013972,2]
[384487022,1757439043300,-480.0,0.00013972,2]
[384487025,1757439043310,-480.0,0.00013972,2]
[384487027,1757439043320,-151.0,0.00013972,2]
[384487029,1757439043329,-151.0,0.00013972,2]
[384487031,1757439043339,-480.0,0.00013972,2]
[384487033,1757439043348,-480.0,0.00013972,2]
[384487035,1757439043357,-654.64,0.00013972,2]
[384487037,1757439043367,-480.0,0.00013972,2]
[384487038,1757439043376,-480.0,0.00013972,2]
[384487040,1757439043385,-644.48,0.00013972,2]
[384487042,1757439043394,-601.96,0.00013972,2]
[384487043,1757439043404,-480.0,0.00013972,2]
[384487045,1757439043413,-480.0,0.00013972,2]
[384487047,1757439043423,-480.0,0.00013972,2]
[384487049,1757439043432,-480.0,0.00013972,2]
[384487051,1757439043441,-480.0,0.00013972,2]
[384487052,1757439043450,-480.0,0.00013972,2]
[384487054,1757439043460,-354.86525612,0.00013972,2]
[384487056,1757439043469,-480.0,0.00013972,2]
[384487057,1757439043478,-830.18,0.00013972,2]
[384487059,1757439043487,-480.0,0.00013972,2]
[384487061,1757439043497,-4546.11,0.00013972,2]
[384487063,1757439043506,-240.138898,0.00013972,2]
[384487064,1757439043515,-815.99,0.00013972,2]
[384487066,1757439043525,-513.30262906,0.00013972,2]
[384487068,1757439043534,-480.0,0.00013972,2]
[384487069,1757439043542,-480.0,0.00013972,2]
[384487071,1757439043552,-151.0,0.00013972,2]
[384487073,1757439043561,-1775.66,0.00013972,2]
[384487075,1757439043570,-151.0,0.00013972,2]
[384487077,1757439043580,-151.0,0.00013972,2]
[384487079,1757439043589,-480.0,0.00013972,2]
[384487081,1757439043598,-3481.5,0.00013972,2]
[384487083,1757439043607,-480.0,0.00013972,2]
[384487084,1757439043617,-480.0,0.00013972,2]
[384487085,1757439043626,-480.0,0.00013972,2]
[384487086,1757439043635,-600.53,0.00013972,2]
[384487087,1757439043644,-480.0,0.00013972,2]
[384487088,1757439043653,-786.52,0.00013972,2]
[384487089,1757439043662,-2536.03,0.00013972,2]
[384487090,1757439043671,-723.46,0.00013972,2]
[384487091,1757439043680,-480.0,0.00013972,2]
[384487092,1757439043690,-2259.64,0.00013972,2]
[384487093,1757439043699,-151.0,0.00013972,2]
[384487094,1757439043708,-480.0,0.00013972,2]